bitfinex/quotes_ETHUSD_20241231
["timestamp","ask_amount","ask_price","bid_price","bid_amount"]
[1735630986817,0.7724,3360.7,3360.6,1.8298075]
[1735630987485,3.74797,3360.7,3360.6,1.2798075]
[1735630990785,3.74797,3360.7,3360.6,1.3078324]
[1735630992339,0.7724,3360.7,3360.6,1.3078324]
[1735630992857,4.22641962,3360.9,3360.6,1.3078324]
[1735630993035,7.22641962,3360.9,3360.8,1.2798075]
[1735630993236,5.9754,3360.9,3360.8,1.2798075]
[1735630993977,3.0,3360.9,3360.8,1.8298075]
[1735630994967,5.97539,3360.9,3360.8,1.8298075]
[1735630999238,7.60683767,3360.9,3360.6,1.2798075]
[1735630999577,3.73197,3360.7,3360.6,1.2798075]
[1735631000580,4.98298962,3360.7,3360.6,1.2798075]
[1735631001481,3.73197,3360.7,3360.6,1.2798075]
[1735631003055,3.73197,3360.7,3360.6,1.3079178]
[1735631005483,3.73197,3360.7,3360.6,1.8579178]
[1735631007506,2.97557,3360.7,3360.6,1.8579178]
[1735631008199,2.97557,3360.7,3360.6,1.8298075]
[1735631009745,1.25101962,3360.9,3360.7,0.55]
[1735631010021,1.25101962,3360.9,3360.8,1.85779358]
[1735631010310,1.25101962,3360.9,3360.8,1.8298075]
[1735631012213,5.03501962,3361.1,3360.9,0.55]
[1735631012518,5.03501962,3361.1,3361.0,1.8298075]
[1735631013489,5.66219235,3361.1,3361.0,1.8298075]
[1735631014116,8.63740235,3361.1,3361.0,1.8298075]
[1735631014918,6.75921,3361.1,3361.0,1.8298075]
[1735631016421,9.26346647,3361.1,3361.0,1.8298075]
[1735631017782,6.75921,3361.1,3361.0,1.85779358]
[1735631020935,5.97521,3361.1,3361.0,1.85779358]
[1735631026415,5.97521,3361.1,3361.0,0.57798608]
[1735631026607,5.97521,3361.1,3361.0,1.85779358]
[1735631027840,9.0996459,3361.1,3361.0,1.85779358]
[1735631029892,9.0996459,3361.1,3361.0,1.8298075]
[1735631030337,5.97521,3361.1,3361.0,1.8298075]
[1735631034902,3.0,3361.1,3361.0,3.109615]
[1735631035096,5.50425148,3361.1,3361.0,3.13741471]
[1735631035296,5.50425148,3361.1,3361.0,1.85760721]
[1735631035497,5.50425148,3361.1,3361.0,3.13741471]
[1735631035913,5.50425148,3361.1,3361.0,1.85760721]
[1735631036143,5.50425148,3361.1,3361.0,3.13741471]
[1735631039839,3.0,3361.1,3361.0,3.13741471]
[1735631040142,7.54657697,3361.1,3361.0,0.02779971]
[1735631040304,8.88141731,3361.1,3361.0,0.02779971]
[1735631041921,5.9753,3361.0,3360.9,1.2798075]
[1735631044148,7.12542947,3361.0,3360.9,1.2798075]
[1735631044479,7.53100702,3361.0,3360.9,1.2798075]
[1735631045042,7.12542947,3361.0,3360.9,1.2798075]
[1735631047847,6.7776,3361.0,3360.9,1.8298075]
[1735631050572,9.90828229,3361.0,3360.9,1.8298075]
[1735631051276,9.90828229,3361.0,3360.9,1.85799547]
[1735631052880,9.10598229,3361.0,3360.9,1.85799547]
[1735631053035,5.9753,3361.0,3360.9,1.85799547]
[1735631055685,9.10631793,3361.0,3360.9,1.85799547]
[1735631056980,5.9753,3361.0,3360.9,1.30799547]
[1735631057180,7.73172179,3361.0,3360.9,0.02818797]
[1735631057407,8.48512881,3361.0,3360.9,0.02818797]
[1735631057545,3.7689,3360.3,3360.1,1.2798075]
[1735631057950,3.74482,3360.3,3360.2,0.02626111]
[1735631058244,0.7689,3360.2,3359.9,1.24883392]
[1735631058603,3.7689,3360.1,3359.8,1.2798075]
[1735631058870,2.97627,3359.9,3359.8,1.2798075]
[1735631060182,5.47980386,3359.9,3359.8,1.2798075]
[1735631060379,2.9764,3359.8,3359.6,2.70364388]
[1735631060686,2.97645,3359.7,3359.6,2.70364388]
[1735631061258,2.50353386,3360.0,3359.6,3.25364388]
[1735631061578,2.50353386,3360.0,3359.7,0.55]
[1735631061807,2.50353386,3360.0,3359.6,3.25364388]
[1735631061808,2.97636,3359.8,3359.6,2.70364388]
[1735631062442,2.97645,3359.7,3359.6,2.70364388]
[1735631062642,2.97645,3359.7,3359.6,3.25364388]
[1735631065857,1.24999674,3359.8,3359.7,0.55]
[1735631066386,7.22627674,3359.9,3359.7,0.55]
[1735631067444,1.24999674,3359.9,3359.7,0.55]
[1735631067640,1.24999674,3359.9,3359.8,0.02629991]
[1735631067882,1.24999674,3359.9,3359.7,0.55]
[1735631069045,3.0,3360.0,3359.7,0.55]
[1735631069247,2.97619,3360.0,3359.9,3.25364388]
[1735631071248,3.99301261,3360.0,3359.9,2.70364388]
[1735631071448,6.76625,3359.7,3359.6,2.70364388]
[1735631071763,6.76625,3359.7,3359.6,3.25364388]
[1735631075899,6.76625,3359.7,3359.6,2.70364388]
[1735631076064,2.97672,3359.4,3359.3,2.70364388]
[1735631076403,2.97698,3359.1,3359.0,2.70364388]
[1735631076705,5.97698,3359.1,3359.0,2.730767]
[1735631076890,5.97698,3359.1,3359.0,3.280767]
[1735631078908,3.0,3359.1,3359.0,3.280767]
[1735631083404,3.0,3359.1,3359.0,3.6088437]
[1735631083988,2.97682,3359.3,3359.1,0.55]
[1735631084191,3.0,3359.4,3359.1,0.55]
[1735631084472,1.24999674,3359.6,3359.5,0.55]
[1735631084691,1.24999674,3359.6,3359.5,3.25364388]
[1735631085106,4.24999674,3359.6,3359.5,3.28070611]
[1735631085376,3.0,3359.6,3359.5,3.25364388]
[1735631085787,3.0,3359.6,3359.5,3.28070611]
[1735631086515,3.0,3359.8,3359.6,0.55]
[1735631086827,5.97645,3359.7,3359.6,0.55]
[1735631087677,5.97654,3359.6,3359.5,2.70364388]
[1735631087989,5.97654,3359.6,3359.5,3.25364388]
[1735631088312,5.97654,3359.6,3359.5,3.28070611]
[1735631094225,5.97654,3359.6,3359.5,1.85687848]
[1735631094531,5.97654,3359.6,3359.5,1.82981625]
[1735631094831,5.97654,3359.6,3359.5,1.85687848]
[1735631096813,6.78354,3359.6,3359.5,1.85687848]
[1735631097534,6.78354,3359.6,3359.5,1.82981625]
[1735631097934,8.07208066,3359.6,3358.8,8.9]
[1735631098233,2.97681,3359.3,3359.0,1.27981625]
[1735631098408,2.97681,3359.3,3359.1,0.55]
[1735631100612,2.97681,3359.3,3359.2,1.27981625]
[1735631100922,2.97689,3359.2,3359.1,0.55]
[1735631101106,3.00664995,3359.2,3359.1,0.55]
[1735631101301,3.00664995,3359.2,3359.1,1.27981625]
[1735631101502,6.6956186,3359.2,3358.8,8.9]
[1735631101797,2.97736,3358.7,3358.0,10.17981625]
[1735631102207,2.97736,3358.7,3358.6,1.27981625]
[1735631102395,6.73486,3358.7,3358.6,1.27981625]
[1735631102598,7.70903,3358.7,3358.6,1.27981625]
[1735631103749,6.73486,3358.7,3358.6,1.27981625]
[1735631104292,3.0,3358.7,3358.6,3.25470657]
[1735631104495,3.0,3358.7,3358.6,3.28106532]
[1735631104895,1.87553986,3358.8,3358.7,0.55]
[1735631105601,1.87553986,3359.0,3358.7,0.57635875]
[1735631105942,1.87553986,3359.0,3358.9,3.25470657]
[1735631106105,1.87553986,3359.0,3358.9,5.95941314]
[1735631106498,1.87553986,3359.0,3358.9,5.98572526]
[1735631106893,1.25005775,3359.4,3358.9,5.98572526]
[1735631107140,1.25005775,3359.4,3359.3,3.25470657]
[1735631107510,1.25005775,3359.4,3359.3,3.28101869]
[1735631108043,1.25005775,3359.5,3359.3,3.28101869]
[1735631108443,1.25005775,3359.5,3359.4,0.55]
[1735631109146,1.25005775,3359.5,3359.4,0.57631212]
[1735631109313,2.00755775,3359.5,3359.4,0.02631212]
[1735631109517,3.0,3359.4,3359.3,0.55]
[1735631110148,3.00647995,3359.4,3359.3,0.55]
[1735631110352,3.32454947,3359.4,3359.3,0.55]
[1735631110506,4.57460722,3359.4,3359.3,0.55]
[1735631110701,5.97709,3359.0,3358.9,2.70470657]
[1735631110902,5.97709,3359.0,3358.2,1.24883392]
[1735631110903,3.7575,3358.9,3358.5,2.70470657]
[1735631111161,6.73493,3358.6,3358.5,2.70470657]
[1735631112441,3.7575,3358.6,3358.5,2.70470657]
[1735631112650,6.73493,3358.6,3358.5,2.70470657]
[1735631113143,5.00717077,3358.6,3358.5,2.70470657]
[1735631113298,7.98460077,3358.6,3358.5,2.70470657]
[1735631114228,6.73493,3358.6,3358.5,2.70470657]
[1735631115406,7.98460077,3358.6,3358.5,2.70470657]
[1735631122213,6.73493,3358.6,3358.5,2.70470657]
[1735631124870,7.98460077,3358.6,3358.5,2.70470657]
[1735631127674,6.73493,3358.6,3358.5,2.70470657]
[1735631128019,3.0,3358.5,3357.7,8.9]
[1735631128191,2.9781,3357.9,3357.8,2.70470657]
[1735631128501,5.9781,3357.9,3357.8,2.70470657]
[1735631130682,3.0,3357.9,3357.8,2.70470657]
[1735631131460,2.97797,3358.0,3357.8,2.70470657]
[1735631132969,2.97805,3357.9,3357.8,2.70470657]
[1735631133292,0.8201,3358.2,3357.8,2.70470657]
[1735631133494,2.97812,3357.9,3357.8,2.70470657]
[1735631135440,2.97789,3358.1,3357.8,3.25470657]
[1735631135674,5.97789,3358.1,3358.0,3.25470657]
[1735631135996,1.24967077,3358.4,3358.1,0.55]
[1735631136147,1.24967077,3358.4,3358.3,3.25470657]
[1735631137142,3.0,3358.6,3358.4,0.55]
[1735631146817,5.06977077,3358.8,3358.4,0.55]
[1735631146976,1.24967077,3358.8,3358.7,0.55]
[1735631148603,3.0,3359.0,3358.7,0.55]
[1735631150497,1.24967077,3359.2,3359.0,0.55]
[1735631150498,4.24967077,3359.2,3359.0,0.55]
[1735631151103,1.24967077,3359.1,3359.0,0.55]
[1735631152203,4.24967077,3359.2,3359.0,0.55]
[1735631152355,1.24967077,3359.2,3359.0,0.55]
[1735631152555,1.24967077,3359.2,3359.1,0.87547066]
[1735631153095,1.24967077,3359.2,3359.1,3.58017723]
[1735631154062,1.24967077,3359.5,3359.2,9.45]
[1735631154299,1.24967077,3359.5,3359.2,12.15470657]
[1735631154614,1.24967077,3359.5,3359.4,0.55]
[1735631155509,4.22593077,3360.0,3359.4,0.55]
[1735631155687,4.22593077,3360.0,3359.9,3.25470657]
[1735631155890,7.22593077,3360.0,3359.9,3.25470657]
[1735631156864,5.97626,3360.0,3359.9,3.25470657]
[1735631158886,3.0,3360.0,3359.9,3.25470657]
[1735631163683,4.22543077,3360.5,3360.0,0.55]
[1735631163895,1.24967077,3360.5,3360.4,3.25470657]
[1735631164499,4.24967077,3360.5,3360.4,3.25470657]
[1735631164899,3.0,3360.6,3360.5,0.55]
[1735631166114,1.24967077,3360.9,3360.5,0.55]
[1735631166309,1.24967077,3360.9,3360.8,3.25470657]
[1735631166919,3.0,3360.9,3360.8,3.25470657]
[1735631167326,5.97539,3360.9,3360.8,3.25470657]
[1735631173545,6.32321947,3360.9,3360.8,3.25470657]
[1735631175147,7.33164942,3360.9,3360.8,2.70470657]
[1735631175310,2.97571,3360.6,3360.5,2.70470657]
[1735631176734,2.97571,3360.6,3360.5,3.25470657]
[1735631178151,3.00525995,3360.8,3360.5,3.25470657]
[1735631178310,2.9755,3360.8,3360.6,0.55]
[1735631180100,0.7609,3360.9,3360.6,0.55]
[1735631180307,0.7609,3360.9,3360.8,3.25470657]
[1735631182948,6.76604995,3360.9,3360.8,3.25470657]
[1735631183147,6.73629,3360.9,3360.8,3.25470657]
[1735631189992,5.97539,3360.9,3360.8,3.25470657]
[1735631191318,3.0,3360.9,3360.8,3.25470657]
[1735631197238,5.97539,3360.9,3360.8,3.25470657]
[1735631198566,6.74419,3360.9,3360.8,3.25470657]
[1735631200265,8.07895953,3360.9,3360.8,2.70470657]
[1735631201179,2.97565,3360.6,3360.5,2.70470657]
[1735631201343,3.74445,3360.6,3360.5,2.70470657]
[1735631203006,2.976,3360.3,3360.2,0.55]
[1735631203158,0.7688,3360.2,3359.4,8.9]
[1735631203361,0.7688,3360.2,3359.9,2.70470657]
[1735631203362,2.97621,3360.0,3359.9,2.70470657]
[1735631203561,3.74483,3360.2,3360.0,0.55]
[1735631204426,4.99397709,3360.2,3360.0,0.55]
[1735631204586,1.24914709,3360.2,3360.0,0.55]
[1735631204788,1.24914709,3360.2,3360.0,0.87547066]
[1735631205624,1.24914709,3360.1,3360.0,0.87547066]
[1735631206798,1.24914709,3360.3,3360.0,0.87547066]
[1735631206998,1.24914709,3360.3,3360.2,3.25470657]
[1735631208792,4.87553986,3360.4,3360.3,0.55]
[1735631209968,3.0,3360.4,3360.3,0.55]
[1735631212152,2.97593,3360.3,3359.5,8.9]
[1735631212364,0.7688,3360.3,3360.1,2.70470657]
[1735631213648,2.97604,3360.2,3360.1,2.70470657]
[1735631214381,2.50353386,3360.3,3360.2,0.55]
[1735631214678,3.0,3360.4,3360.2,0.55]
[1735631214679,5.50353386,3360.4,3360.2,0.55]
[1735631215882,1.24890177,3360.3,3360.2,0.55]
[1735631219482,7.84920265,3360.4,3360.2,0.55]
[1735631221912,1.24829716,3360.3,3360.2,0.55]
[1735631222238,4.22421716,3360.3,3360.2,0.55]
[1735631222401,4.99751716,3360.3,3360.2,0.55]
[1735631223227,3.74922,3360.3,3360.2,0.55]
[1735631225799,2.97592,3360.3,3360.2,0.55]
[1735631226603,4.22402175,3360.3,3360.2,0.55]
[1735631227099,1.24810175,3360.3,3360.2,0.55]
[1735631227715,1.24810175,3360.3,3360.2,0.87547066]
[1735631229276,1.24810175,3360.3,3360.2,0.55]
[1735631229476,1.24810175,3360.4,3360.2,0.55]
[1735631234383,1.24810175,3360.4,3360.3,1.82927337]
[1735631236343,1.24810175,3360.4,3360.0,1.27927337]
[1735631236344,0.7729,3360.3,3359.7,8.9]
[1735631236607,2.97602,3360.2,3359.7,8.9]
[1735631236951,2.97602,3360.2,3359.6,1.16673223]
[1735631237149,0.7729,3360.3,3359.7,0.55]
[1735631237443,2.9761,3360.1,3360.0,1.27927337]
[1735631238243,0.7729,3359.8,3359.3,10.14883392]
[1735631238443,0.7729,3359.8,3359.5,1.27927337]
[1735631238444,0.02975995,3359.7,3359.5,1.27927337]
[1735631238701,2.97654,3359.6,3359.5,1.27927337]
[1735631240244,2.97654,3359.6,3359.5,2.70394299]
[1735631243342,4.22517758,3359.6,3359.5,2.70394299]
[1735631244843,1.24863758,3359.6,3359.5,3.25394299]
[1735631246031,1.24863758,3359.6,3359.5,3.84973159]
[1735631246607,1.24863758,3359.9,3359.6,0.55]
[1735631246855,1.24863758,3359.9,3359.8,3.25394299]
[1735631247970,1.24863758,3360.3,3359.9,0.55]
[1735631248171,1.24863758,3360.3,3360.2,3.25394299]
[1735631250078,5.05453758,3360.4,3360.3,0.55]
[1735631251677,8.03036758,3360.4,3360.3,0.55]
[1735631251836,9.91652355,3360.4,3360.3,0.55]
[1735631252878,8.66788597,3360.4,3360.3,0.55]
[1735631255185,8.3200565,3360.4,3360.3,0.55]
[1735631255496,10.19367005,3360.4,3360.3,0.55]
[1735631257198,8.3200565,3360.4,3360.3,0.55]
[1735631257695,5.3442265,3360.4,3359.9,2.70394299]
[1735631257896,5.97627,3359.9,3359.8,8.9]
[1735631258103,2.97645,3359.7,3359.6,2.70394299]
[1735631258614,2.97645,3359.7,3359.6,3.25394299]
[1735631258907,5.97645,3359.7,3359.6,3.25394299]
[1735631259066,6.76295,3359.7,3359.6,3.25394299]
[1735631260030,2.97672,3359.4,3359.3,2.70394299]
[1735631260513,2.97672,3359.4,3359.3,3.25394299]
[1735631261291,0.7723,3359.3,3358.7,8.9]
[1735631261477,2.97718,3358.9,3358.7,2.70394299]
[1735631261971,2.97718,3358.9,3358.8,0.55]
[1735631262587,2.97725,3358.8,3358.7,2.70394299]
[1735631262786,6.00700995,3358.8,3358.7,2.70394299]
[1735631263013,5.97725,3358.8,3358.7,2.70394299]
[1735631265309,5.97725,3358.8,3358.7,3.25394299]
[1735631265513,3.0,3358.8,3358.7,3.25394299]
[1735631266009,1.87361355,3359.1,3358.7,3.25394299]
[1735631266010,1.2468483,3359.1,3358.8,0.55]
[1735631266169,4.2468483,3359.1,3359.0,3.25394299]
[1735631266368,1.2468483,3359.1,3359.0,3.25394299]
[1735631266610,1.2468483,3359.1,3359.0,4.50187672]
[1735631266975,2.50353386,3359.4,3359.0,4.50187672]
[1735631266976,4.2468483,3359.4,3359.1,0.55]
[1735631268706,3.0,3359.4,3359.3,3.25394299]
[1735631272907,3.80043,3359.8,3359.4,0.55]
[1735631273111,1.2468483,3359.9,3359.7,2.70394299]
[1735631273312,1.2468483,3359.9,3359.8,0.55]
[1735631273626,7.2231183,3359.9,3359.8,0.55]
[1735631274624,4.2231183,3359.9,3359.8,0.55]
[1735631274926,1.2468483,3360.1,3359.8,0.55]
[1735631275127,1.2468483,3360.1,3360.0,3.25394299]
[1735631275709,7.2229683,3360.1,3360.0,3.25394299]
[1735631276391,5.97612,3360.1,3360.0,3.25394299]
[1735631277225,3.0,3360.1,3360.0,3.25394299]
[1735631277995,4.2228683,3360.2,3360.1,0.55]
[1735631279200,2.97602,3360.2,3360.1,0.55]
[1735631280228,2.9761,3360.1,3359.7,2.70394299]
[1735631280560,2.97636,3359.8,3359.7,2.70394299]
[1735631280958,2.97636,3359.8,3359.7,3.25394299]
[1735631281103,3.77899,3360.0,3359.7,2.70394299]
[1735631281310,3.77899,3360.0,3359.8,0.55]
[1735631283728,2.97627,3359.9,3359.8,0.55]
[1735631285155,0.8028,3360.0,3359.8,0.55]
[1735631285317,2.97611,3360.1,3359.8,0.55]
[1735631285528,2.97611,3360.1,3360.0,3.25394299]
[1735631288976,2.0496483,3360.3,3360.1,0.55]
[1735631289172,4.2468483,3360.3,3360.1,0.55]
[1735631289532,7.2227783,3360.3,3360.1,0.55]
[1735631290473,2.97601,3360.2,3360.1,0.55]
[1735631292476,7.2227083,3360.4,3360.1,0.55]
[1735631292635,2.97592,3360.3,3360.1,0.55]
[1735631292976,2.97601,3360.2,3360.1,0.55]
[1735631295142,2.97585,3360.4,3360.1,0.55]
[1735631296483,5.0496483,3360.5,3360.4,0.55]
[1735631296846,4.2468483,3360.5,3360.4,0.55]
[1735631297175,1.2468483,3360.5,3360.4,0.55]
[1735631297379,1.2468483,3360.5,3360.4,0.8753943]
[1735631297738,1.2468483,3360.5,3360.4,0.55]
[1735631297968,1.2468483,3360.6,3360.4,0.55]
[1735631299186,4.2225883,3360.6,3360.4,0.55]
[1735631299397,2.97574,3360.6,3360.4,0.55]
[1735631303674,3.76564,3360.5,3360.4,0.55]
[1735631303876,4.56986483,3360.5,3359.6,8.9]
[1735631304046,0.02975995,3360.4,3360.0,2.70394299]
[1735631304241,2.97583,3360.4,3360.1,0.55]
[1735631304484,3.76564,3360.5,3360.0,2.70394299]
[1735631304485,2.9761,3360.1,3360.0,2.70394299]
[1735631304890,2.9761,3360.1,3360.0,3.25394299]
[1735631305390,2.0367483,3360.5,3360.0,3.25394299]
[1735631305563,2.97594,3360.3,3360.1,0.55]
[1735631312462,4.2227883,3360.3,3360.1,0.55]
[1735631313466,1.2468483,3360.3,3360.1,0.55]
[1735631318079,1.2468483,3360.4,3360.1,0.55]
[1735631319668,5.63927355,3360.5,3360.1,0.55]
[1735631319669,1.2468483,3360.3,3360.1,0.55]
[1735631320980,1.2468483,3360.3,3360.1,0.8753943]
[1735631321183,1.2468483,3360.3,3360.1,9.7753943]
[1735631321580,1.2468483,3360.3,3360.2,2.70394299]
[1735631321796,1.2468483,3360.3,3360.2,3.25394299]
[1735631322111,1.2468483,3360.4,3360.3,0.55]
[1735631324875,1.2468483,3360.4,3360.2,8.9]
[1735631324876,2.97592,3360.3,3360.2,8.9]
[1735631325075,3.74682,3360.3,3360.2,8.9]
[1735631325500,3.74682,3360.3,3360.2,9.45]
[1735631326691,5.62043355,3360.3,3360.2,9.45]
[1735631327114,5.62043355,3360.3,3360.2,0.55]
[1735631329119,2.64451355,3360.3,3359.9,2.70394299]
[1735631329327,2.64451355,3360.3,3359.4,8.9]
[1735631329328,2.9763,3359.9,3359.6,2.70394299]
[1735631329481,3.7472,3359.9,3359.6,2.70394299]
[1735631329683,3.7472,3359.9,3359.7,0.55]
[1735631330376,0.7709,3359.9,3359.7,0.55]
[1735631330576,3.7709,3359.8,3359.5,0.55]
[1735631330774,0.80065995,3359.8,3359.5,0.55]
[1735631331594,6.77703995,3359.8,3359.5,0.55]
[1735631331780,6.74728,3359.8,3359.5,0.55]
[1735631332097,1.24727652,3359.7,3359.5,0.55]
[1735631334174,1.24727652,3359.7,3359.5,2.0357886]
[1735631334981,1.24727652,3359.8,3359.5,2.0357886]
[1735631335179,1.24727652,3359.8,3359.7,3.25394299]
[1735631336221,1.24727652,3359.8,3359.7,12.15394299]
[1735631336424,2.50353386,3360.1,3359.8,0.55]
[1735631336425,1.24727652,3360.1,3359.8,0.55]
[1735631336724,1.24727652,3360.1,3359.8,1.91397316]
[1735631337452,1.24727652,3360.1,3360.0,3.25394299]
[1735631337656,1.24727652,3360.1,3360.0,12.15394299]
[1735631339461,1.24727652,3360.4,3360.1,0.55]
[1735631339648,1.24727652,3360.4,3360.3,3.25394299]
[1735631341116,5.01910652,3360.4,3360.3,3.25394299]
[1735631341487,3.77183,3360.4,3360.3,3.25394299]
[1735631342487,0.796,3360.4,3360.3,3.25394299]
[1735631342833,2.66961355,3360.4,3360.3,3.25394299]
[1735631343037,1.87361355,3360.4,3360.3,3.25394299]
[1735631344203,1.24748704,3360.4,3360.3,3.25394299]
[1735631347697,1.24748704,3360.5,3360.4,0.55]
[1735631348839,1.87361355,3360.5,3360.4,0.55]
[1735631349933,1.87361355,3360.6,3360.4,0.55]
[1735631350145,4.84929355,3360.6,3360.4,0.55]
[1735631356647,1.87361355,3360.5,3360.4,0.55]
[1735631357847,4.84929355,3360.6,3360.4,0.55]
[1735631358908,1.87361355,3360.6,3360.4,0.55]
[1735631360452,1.24653278,3360.5,3360.4,0.55]
[1735631364443,1.24653278,3360.6,3360.4,0.55]
[1735631366243,1.24653278,3360.6,3360.4,9.45]
[1735631367419,2.97574,3360.5,3360.4,9.45]
[1735631368361,4.22227278,3360.5,3360.4,9.45]
[1735631369256,4.22227278,3360.5,3360.4,0.55]
[1735631371563,4.99697278,3360.5,3360.4,0.55]
[1735631371770,2.97596,3360.3,3360.0,2.70394299]
[1735631372151,2.97596,3360.3,3360.1,0.55]
[1735631372876,4.22249278,3360.3,3360.1,0.55]
[1735631374542,1.24653278,3360.3,3360.1,0.55]
[1735631375588,2.64831355,3360.5,3360.1,0.55]
[1735631375589,1.24653278,3360.4,3360.1,0.55]
[1735631375754,1.24653278,3360.4,3360.3,3.25394299]
[1735631381385,2.64831355,3360.5,3360.4,0.55]
[1735631382589,3.27823386,3360.5,3360.4,0.55]
[1735631382887,2.50353386,3360.5,3360.4,0.55]
[1735631383190,2.50353386,3360.5,3360.4,0.8753943]
[1735631383555,2.50353386,3360.6,3360.4,0.8753943]
[1735631384287,2.50353386,3360.6,3360.5,1.82904916]
[1735631385387,1.87397175,3360.6,3360.5,1.82904916]
[1735631386493,1.87397175,3360.6,3360.5,3.25166604]
[1735631386788,3.12941732,3360.9,3360.6,0.55]
[1735631386789,1.87397175,3360.8,3360.6,0.55]
[1735631390292,1.87397175,3360.8,3360.6,9.45]
[1735631390501,1.24849052,3360.7,3360.6,9.45]
[1735631391002,1.24849052,3360.7,3360.6,9.89757438]
[1735631399803,1.24849052,3361.3,3360.8,0.55]
[1735631400001,1.24849052,3361.3,3361.2,3.25166604]
[1735631404099,1.24849052,3361.4,3361.3,9.45]
[1735631404302,1.24849052,3361.4,3361.3,10.7201666]
[1735631405804,0.7767,3361.9,3361.3,10.7201666]
[1735631405805,2.02519052,3361.9,3361.3,10.7201666]
[1735631406007,2.02519052,3361.9,3361.8,3.25166604]
[1735631406363,2.02519052,3361.9,3361.8,1.82809391]
[1735631408111,0.7767,3361.9,3361.8,1.82809391]
[1735631410212,2.02519052,3362.1,3361.9,0.55]
[1735631410413,2.02519052,3362.1,3362.0,1.82809391]
[1735631410579,0.7767,3362.1,3362.0,1.82809391]
[1735631411602,0.7767,3362.1,3362.0,3.10618782]
[1735631416613,3.74898,3362.4,3362.1,0.55]
[1735631416914,3.74898,3362.4,3362.3,1.82809391]
[1735631419890,0.7749,3362.6,3362.4,0.55]
[1735631420099,0.7749,3362.6,3362.5,1.82809391]
[1735631420298,1.24849052,3362.7,3362.6,0.55]
[1735631421678,1.24849052,3362.7,3362.6,1.82809391]
[1735631421872,1.24849052,3362.7,3362.6,0.55]
[1735631422077,1.24849052,3362.7,3362.6,1.82809391]
[1735631422617,0.7749,3362.8,3362.7,0.55]
[1735631422923,0.7749,3362.4,3362.0,1.27809391]
[1735631423127,3.74897,3362.4,3362.0,1.27809391]
[1735631423422,3.74897,3362.4,3362.1,0.55]
[1735631423423,0.7749,3362.4,3362.1,0.55]
[1735631423588,3.7749,3362.8,3362.1,0.55]
[1735631423793,3.74862,3362.8,3362.1,0.55]
[1735631424122,3.74862,3362.8,3362.0,1.27809391]
[1735631424123,3.74862,3362.8,3362.7,1.27809391]
[1735631424433,3.74862,3362.8,3362.6,0.55]
[1735631425193,0.7749,3362.8,3362.6,0.55]
[1735631427023,3.74861,3362.8,3362.6,0.55]
[1735631428717,5.9738,3362.7,3362.6,0.55]
[1735631428885,2.97406,3362.4,3362.3,8.9]
[1735631429248,6.75326,3362.4,3362.3,8.9]
[1735631429377,0.7792,3362.0,3361.9,2.6989235]
[1735631430613,3.78336995,3362.0,3361.9,2.6989235]
[1735631430814,3.75361,3362.0,3361.9,2.6989235]
[1735631431486,0.7792,3361.9,3361.5,8.9]
[1735631431685,2.97468,3361.7,3361.6,2.6989235]
[1735631431884,6.75388,3361.7,3361.6,3.2489235]
[1735631432321,6.75388,3361.7,3361.6,3.30131036]
[1735631433214,6.75388,3361.7,3361.6,0.60238686]
[1735631433422,7.76794006,3361.7,3361.6,0.60238686]
[1735631434506,6.75388,3361.7,3361.6,0.60238686]
[1735631434832,6.75388,3361.7,3361.6,3.30131036]
[1735631439645,3.0,3361.7,3361.6,3.30131036]
[1735631439941,3.0,3361.7,3361.6,3.2489235]
[1735631440093,0.7792,3361.9,3361.7,0.55]
[1735631440295,5.39718666,3362.2,3361.7,0.55]
[1735631440598,4.24849052,3362.2,3362.0,0.55]
[1735631440999,4.64774661,3362.2,3362.0,0.55]
[1735631441200,4.67712031,3362.2,3362.0,0.55]
[1735631441640,4.67712031,3362.2,3362.1,0.05086491]
[1735631441933,3.0,3362.0,3361.9,2.6989235]
[1735631442177,3.0,3362.0,3361.9,3.2489235]
[1735631442333,3.0,3362.0,3361.9,3.29978841]
[1735631442494,1.16079614,3362.2,3362.0,0.55]
[1735631442694,0.7913,3362.2,3362.0,0.55]
[1735631443127,0.7913,3362.2,3362.1,0.05086491]
[1735631443329,1.925428,3362.2,3361.6,2.6989235]
[1735631443534,2.97441,3362.0,3361.6,2.6989235]
[1735631443706,2.97441,3362.0,3361.7,0.55]
[1735631444429,5.97441,3362.0,3361.9,3.2489235]
[1735631445204,6.74551,3362.0,3361.9,3.2489235]
[1735631445443,7.58185967,3362.0,3361.9,0.55]
[1735631448179,2.97459,3361.8,3361.6,2.6989235]
[1735631448787,5.97459,3361.8,3361.7,0.55]
[1735631449348,3.0,3361.8,3361.6,2.6989235]
[1735631449707,2.97468,3361.7,3361.3,2.6989235]
[1735631449871,2.97468,3361.7,3361.4,0.55]
[1735631450031,2.97468,3361.7,3361.4,0.60041487]
[1735631454475,4.24849052,3361.8,3361.6,2.6989235]
[1735631454849,4.24849052,3361.8,3361.7,0.05042263]
[1735631455646,3.0,3361.8,3361.7,0.05042263]
[1735631458254,3.0,3361.8,3361.6,2.6989235]
[1735631459284,3.0,3361.7,3361.3,2.6989235]
[1735631459493,0.84575995,3361.6,3361.4,0.55]
[1735631459791,0.84575995,3361.6,3361.4,0.60053903]
[1735631461050,7.114806,3361.5,3361.4,0.05053903]
[1735631461394,3.73329,3360.9,3360.5,3.94775742]
[1735631461693,0.7579,3360.9,3360.6,0.59922113]
[1735631462095,0.7579,3360.9,3360.8,3.2489235]
[1735631462462,0.7579,3360.9,3360.8,2.74814463]
[1735631462997,0.7579,3360.9,3360.8,0.04922113]
[1735631463398,0.7579,3360.9,3360.5,3.2489235]
[1735631463562,2.97523,3361.1,3360.8,2.74814463]
[1735631463760,3.0,3361.0,3360.8,2.6989235]
[1735631463962,3.0,3361.0,3360.9,0.04922113]
[1735631464408,3.0,3361.0,3360.8,2.6989235]
[1735631464732,2.00639052,3361.2,3360.9,0.59922113]